bitfinex-derivatives/quotes_BTCF0:USTF0_20210105
["timestamp","ask_amount","ask_price","bid_price","bid_amount"]
[1609836014147,3.718,31183.0,31182.0,0.05463]
[1609836014546,3.718,31183.0,31182.0,3e-05]
[1609836014746,0.0958,31197.0,31175.0,0.14243]
[1609836014946,3.8133,31177.0,31175.0,0.14243]
[1609836015147,0.13632608,31176.0,31175.0,0.23476]
[1609836015346,4.53432608,31176.0,31175.0,0.09236]
[1609836015554,4.53432608,31176.0,31175.0,0.02136]
[1609836015747,4.53432608,31176.0,31172.0,0.13632608]
[1609836015748,4.53432608,31176.0,31155.0,2.09782137]
[1609836016150,0.13632608,31176.0,31155.0,2.09782137]
[1609836016350,5.2631,31157.0,31155.0,2.09782137]
[1609836016549,4.4304,31156.0,31155.0,1.48612137]
[1609836016750,4.4304,31156.0,31155.0,1.25052137]
[1609836017051,4.56672608,31156.0,31155.0,1.25052137]
[1609836017652,4.56672608,31156.0,31155.0,0.99032137]
[1609836018251,4.56672608,31156.0,31155.0,0.40802137]
[1609836018452,4.56672608,31156.0,31149.0,2.35706481]
[1609836018652,4.56672608,31156.0,31149.0,2.18236481]
[1609836018852,0.13632608,31156.0,31149.0,1.79156481]
[1609836019052,5.02252608,31150.0,31149.0,1.65356481]
[1609836019252,5.02252608,31150.0,31149.0,1.19466481]
[1609836019452,5.02252608,31150.0,31149.0,0.90256481]
[1609836019652,5.02252608,31150.0,31149.0,0.58536481]
[1609836019854,5.02252608,31150.0,31149.0,0.37366481]
[1609836020054,5.02252608,31150.0,31149.0,0.02096481]
[1609836020253,0.23212608,31150.0,31149.0,0.02096481]
[1609836020455,0.23212608,31150.0,31137.0,2.29456281]
[1609836021059,0.13632608,31138.0,31137.0,2.29456281]
[1609836021260,3.7279,31153.0,31137.0,2.29456281]
[1609836021462,0.13768,31156.0,31137.0,0.13376]
[1609836022460,0.00379636,31161.0,31137.0,0.13376]
[1609836023060,0.00379636,31161.0,31148.0,0.28338608]
[1609836023461,0.0958,31163.0,31148.0,0.28338608]
[1609836023860,0.0958,31163.0,31148.0,0.27508608]
[1609836024563,0.0958,31163.0,31149.0,0.0949]
[1609836025165,0.13632608,31150.0,31149.0,0.0949]
[1609836025363,0.23302608,31150.0,31149.0,0.0949]
[1609836025564,0.13632608,31150.0,31148.0,0.21608608]
[1609836025766,0.13632608,31150.0,31148.0,0.14706]
[1609836025963,0.13632608,31150.0,31137.0,0.13376]
[1609836026363,0.13632608,31150.0,31076.0,2.54283262]
[1609836026564,0.13632608,31150.0,31077.0,0.0954]
[1609836026764,0.0954,31149.0,31078.0,0.20007]
[1609836027064,0.13632608,31149.0,31148.0,0.13632608]
[1609836027266,0.13632608,31149.0,31148.0,0.11152]
[1609836028164,0.0958,31163.0,31148.0,0.20722]
[1609836028565,0.0967,31167.0,31148.0,0.11152]
[1609836028966,0.0974,31177.0,31148.0,0.11152]
[1609836029166,0.13632608,31158.0,31153.0,0.13632608]
[1609836029366,0.0966,31157.0,31153.0,0.13632608]
[1609836029866,0.13632608,31158.0,31153.0,0.13632608]
[1609836030067,0.13632608,31158.0,31148.0,0.11152]
[1609836030870,0.0963,31157.0,31148.0,0.11152]
[1609836031068,0.0963,31157.0,31141.0,0.09051]
[1609836031069,0.13632608,31149.0,31145.0,0.13632608]
[1609836031269,0.0961,31148.0,31145.0,0.13632608]
[1609836031669,0.0961,31148.0,31141.0,0.09051]
[1609836031868,0.13632608,31149.0,31141.0,0.09051]
[1609836032470,0.13632608,31149.0,31125.0,0.0949]
[1609836032870,0.0965,31148.0,31125.0,0.0949]
[1609836033071,0.13632608,31141.0,31140.0,0.13632608]
[1609836033272,0.13632608,31141.0,28396.0,0.01476092]
[1609836033672,0.13632608,31141.0,31111.0,0.0971]
[1609836034074,0.13632608,31141.0,31111.0,0.21547]
[1609836034676,0.096,31140.0,31111.0,0.21547]
[1609836034873,0.13632608,31141.0,31111.0,0.21547]
[1609836035074,0.13632608,31141.0,31140.0,0.13632608]
[1609836035274,0.13632608,31141.0,31140.0,0.24628608]
[1609836035473,0.13632608,31141.0,31140.0,0.23608608]
[1609836035673,0.13632608,31141.0,31140.0,0.02916]
[1609836035873,0.13632608,31141.0,31140.0,0.02526]
[1609836036781,0.0969,31155.0,31140.0,0.02526]
[1609836036984,0.0969,31155.0,31141.0,0.0952]
[1609836037177,0.0969,31155.0,31146.0,0.13632608]
[1609836037777,0.13632608,31159.0,31146.0,0.13632608]
[1609836038280,0.13632608,31159.0,31147.0,0.0952]
[1609836038479,0.13632608,31159.0,31147.0,0.0402]
[1609836038979,0.23162608,31159.0,31147.0,0.0402]
[1609836039183,0.13632608,31148.0,31147.0,0.0402]
[1609836039383,0.23242608,31148.0,31140.0,0.02526]
[1609836039581,0.0954,31147.0,31140.0,0.02526]
[1609836040279,0.0954,31147.0,31135.0,0.13632608]
[1609836040779,0.0954,31147.0,31110.0,0.0955]
[1609836040979,0.0954,31147.0,31103.0,0.0975]
[1609836041181,0.0954,31147.0,31131.0,0.13632608]
[1609836041382,0.0954,31147.0,31131.0,0.23116608]
[1609836042080,0.0961,31148.0,31131.0,0.23116608]
[1609836043081,0.13632608,31132.0,31131.0,0.23116608]
[1609836043481,0.096,31141.0,31131.0,0.32636608]
[1609836043885,0.12255,31151.0,31131.0,0.23116608]
[1609836044584,0.0963,31156.0,31131.0,0.23116608]
[1609836044984,0.0963,31156.0,31132.0,0.0965]
[1609836045183,0.0963,31156.0,31131.0,0.09484]
[1609836045384,0.0966,31162.0,31131.0,0.09484]
[1609836046283,0.0956,31160.0,31132.0,0.096]
[1609836047086,0.0956,31160.0,31150.0,0.13632608]
[1609836047284,0.0966,31162.0,31131.0,0.09484]
[1609836047484,0.0966,31162.0,31142.0,0.11975]
[1609836048285,0.0975,31159.0,31142.0,0.11975]
[1609836049189,0.13632608,31143.0,31142.0,0.11975]
[1609836050091,0.13632608,31143.0,31141.0,0.13632608]
[1609836050295,0.13632608,31143.0,31131.0,0.09484]
[1609836050489,0.13632608,31143.0,31103.0,0.0976]
[1609836050889,0.13632608,31143.0,31099.0,0.0971]
[1609836051089,0.10993,31151.0,31131.0,0.13632608]
[1609836051291,0.20733,31151.0,31131.0,0.13632608]
[1609836051490,4.9921,31141.0,31131.0,0.13632608]
[1609836051891,0.0961,31145.0,31129.0,0.13932]
[1609836052093,3.9606,31130.0,31129.0,0.13932]
[1609836052492,3.9606,31130.0,31129.0,2e-05]
[1609836052691,3.9606,31130.0,31084.0,2.10002859]
[1609836052892,0.095,31141.0,31100.0,0.43759]
[1609836053093,4.9351,31119.0,31114.0,0.13632608]
[1609836053493,4.9351,31119.0,31114.0,0.12973]
[1609836053693,4.9351,31119.0,31114.0,0.06003]
[1609836053894,4.9351,31119.0,31114.0,0.05193]
[1609836054093,4.9351,31119.0,31114.0,0.02173]
[1609836054495,0.0975,31118.0,31114.0,0.02173]
[1609836054696,0.0975,31118.0,31115.0,0.0975]
[1609836054898,5.2878,31116.0,31115.0,0.0975]
[1609836055094,5.42412608,31116.0,31104.0,0.13632608]
[1609836055697,0.13632608,31116.0,31104.0,0.13632608]
[1609836056295,0.0964,31115.0,31105.0,0.0967]
[1609836057096,0.0964,31115.0,31114.0,0.13632608]
[1609836057296,0.13632608,31116.0,31114.0,0.13632608]
[1609836057498,0.14296,31120.0,31114.0,0.13632608]
[1609836058197,0.14296,31120.0,31115.0,0.0957]
[1609836059098,0.0959,31130.0,31115.0,0.0957]
[1609836059298,0.0959,31130.0,31119.0,0.13632608]
[1609836059899,0.13632608,31133.0,31119.0,0.13632608]
[1609836060300,0.2714,31140.0,31119.0,0.13632608]
[1609836060500,0.0964,31141.0,31120.0,0.0952]
[1609836061100,0.0964,31141.0,31119.0,0.13632608]
[1609836061301,0.01826513,31145.0,31140.0,0.13632608]
[1609836061700,0.06669524,31146.0,31140.0,0.13632608]
[1609836062804,0.0965,31145.0,31141.0,0.095]
[1609836063003,0.0963,31144.0,31141.0,0.095]
[1609836063205,0.06669524,31146.0,31140.0,0.13632608]
[1609836064206,0.11925,31155.0,31140.0,0.13632608]
[1609836065207,0.13632608,31154.0,31149.0,0.13632608]
[1609836066907,0.11925,31155.0,31149.0,0.13632608]
[1609836067106,4.5074,31185.0,31149.0,0.13632608]
[1609836067308,0.13632608,31165.0,31160.0,0.13632608]
[1609836070017,0.13632608,31165.0,31153.0,4.487]
[1609836071217,0.14686,31171.0,31155.0,0.13632608]
[1609836071718,0.14686,31171.0,31155.0,0.22791608]
[1609836072719,0.14686,31171.0,31156.0,4.8946]
[1609836073321,0.13632608,31157.0,31156.0,4.8946]
[1609836073722,0.1925,31178.0,31156.0,4.8946]
[1609836074420,0.0958,31173.0,31156.0,4.8946]
[1609836074620,0.1925,31178.0,31156.0,4.8946]
[1609836075222,0.13632608,31162.0,31156.0,4.8946]
[1609836077024,0.13632608,31162.0,31155.0,0.22791608]
[1609836077225,0.13632608,31156.0,31155.0,0.22791608]
[1609836077425,0.13632608,31156.0,31155.0,0.09159]
[1609836077625,0.13632608,31156.0,31143.0,0.12098]
[1609836077824,0.13632608,31156.0,31136.0,0.14542]
[1609836078025,0.13632608,31156.0,31131.0,2.13193341]
[1609836078224,0.13632608,31156.0,31132.0,0.0973]
[1609836078628,0.13632608,31156.0,31132.0,0.12773]
[1609836079224,0.0959,31159.0,31134.0,0.13632608]
[1609836079826,0.0959,31159.0,31134.0,0.76562608]
[1609836080026,0.0976,31164.0,31134.0,0.13632608]
[1609836080225,0.40078,31166.0,31138.0,4.6435]
[1609836081129,0.49738,31166.0,31138.0,4.6435]
[1609836081327,0.13632608,31162.0,31156.0,0.13632608]
[1609836081528,0.0972,31161.0,31139.0,0.0951]
[1609836081729,0.13632608,31162.0,31138.0,4.6435]
[1609836082831,0.0948,31161.0,31138.0,4.5594]
[1609836083031,0.0948,31161.0,31138.0,4.5541]
[1609836083330,0.13632608,31148.0,31138.0,4.5541]
[1609836083531,0.13632608,31148.0,31134.0,0.13632608]
[1609836084932,0.0966,31147.0,31134.0,0.13632608]
[1609836085132,0.0966,31147.0,31127.0,4.4521]
[1609836085532,0.0966,31147.0,31119.0,2.1406492]
[1609836085732,0.0966,31147.0,31117.0,2.27778899]
[1609836086532,0.13351,31148.0,31117.0,2.27778899]
[1609836086932,0.13351,31148.0,31120.0,4.8298]
[1609836087333,0.13351,31148.0,31140.0,0.13632608]
[1609836089436,0.13351,31148.0,31147.0,0.13632608]
[1609836089635,0.2755,31150.0,31147.0,0.13632608]
[1609836089836,0.13632608,31151.0,31147.0,0.13632608]
[1609836091739,0.2999,31162.0,31147.0,0.13632608]
[1609836093040,0.2999,31162.0,31147.0,0.82482608]
[1609836093241,0.2999,31162.0,31147.0,0.13632608]
[1609836093441,0.10668,31166.0,31161.0,0.13632608]
[1609836093640,0.67715091,31170.0,31161.0,0.13632608]
[1609836094443,0.14303,31173.0,31161.0,0.13632608]
[1609836094642,0.56423248,31175.0,31161.0,0.13632608]
[1609836095343,0.56423248,31175.0,31167.0,0.13632608]
[1609836097345,0.13632608,31168.0,31167.0,0.13632608]
[1609836098045,0.13632608,31168.0,31153.0,0.14227]
[1609836098445,0.13632608,31168.0,31153.0,0.06347]
[1609836098646,0.13632608,31168.0,31153.0,7e-05]
[1609836098850,0.23192608,31168.0,31153.0,7e-05]
[1609836099046,0.23192608,31168.0,31140.0,2.23607772]
[1609836099450,0.13632608,31144.0,31141.0,0.13632608]
[1609836100347,0.11963,31152.0,31141.0,0.13632608]
[1609836101346,0.11963,31152.0,31147.0,0.13632608]
[1609836104654,0.13632608,31153.0,31147.0,0.13632608]
[1609836105455,0.13632608,31153.0,31152.0,0.13632608]
[1609836106654,0.56267246,31162.0,31152.0,0.13632608]
[1609836107455,0.56267246,31162.0,31161.0,0.13632608]
[1609836107955,0.2958,31166.0,31161.0,0.13632608]
[1609836109258,0.69036321,31173.0,31161.0,0.13632608]
[1609836109457,0.69036321,31173.0,31141.0,0.13]
[1609836109458,0.69036321,31173.0,31172.0,0.13632608]
[1609836109659,0.12383,31173.0,31172.0,0.13632608]
[1609836109860,0.56689771,31175.0,31172.0,0.13632608]
[1609836110658,0.56766741,31179.0,31172.0,0.13632608]
[1609836111358,0.70399349,31179.0,31172.0,0.13632608]
[1609836111760,0.13632608,31179.0,31172.0,0.13632608]
[1609836113962,0.13632608,31179.0,31159.0,0.10414]
[1609836114162,0.24589608,31179.0,31159.0,0.03994]
[1609836114362,0.24589608,31179.0,31159.0,4e-05]
[1609836114762,0.24589608,31179.0,31154.0,5.0701]
[1609836115563,0.13632608,31173.0,31162.0,0.13632608]
[1609836115765,0.0961,31172.0,31154.0,5.0701]
[1609836115964,0.22444,31172.0,31145.0,2.13975972]
[1609836116166,4.8453,31170.0,31145.0,2.13975972]
[1609836116366,0.097,31169.0,31145.0,2.13975972]
[1609836116567,0.097,31169.0,31141.0,0.13]
[1609836116766,0.097,31169.0,31138.0,5.1005]
[1609836116967,0.3675,31169.0,31138.0,5.1005]
[1609836117367,0.56758053,31166.0,31138.0,5.1005]
[1609836117569,0.13632608,31152.0,31143.0,0.13632608]
[1609836119068,0.0949,31151.0,31143.0,0.13632608]
[1609836120869,0.13632608,31152.0,31143.0,0.13632608]
[1609836122972,0.13632608,31152.0,31143.0,0.11962608]
[1609836127082,0.0972,31151.0,31143.0,0.11962608]
[1609836127281,0.13632608,31152.0,31143.0,0.11962608]
[1609836129482,0.13632608,31161.0,31143.0,0.11962608]
[1609836129683,0.56714916,31162.0,31143.0,0.11962608]
[1609836129882,0.56714916,31162.0,31149.0,4.8942]
[1609836131585,0.56714916,31162.0,31161.0,0.13632608]
[1609836133287,1.92348352,31169.0,31161.0,0.13632608]
[1609836133288,0.2705,31169.0,31161.0,0.13632608]
[1609836133486,0.13632608,31167.0,31161.0,0.13632608]
[1609836136592,0.13632608,31167.0,31140.0,2.28479819]
[1609836137595,0.2705,31169.0,31140.0,2.28479819]
[1609836138298,0.2705,31169.0,31141.0,2.15002206]
[1609836139500,0.13632608,31147.0,31144.0,0.13632608]
[1609836140499,0.13632608,31147.0,31141.0,2.15002206]
[1609836141700,0.13632608,31142.0,31141.0,1.89222206]
[1609836142302,0.13632608,31142.0,31131.0,2.34543703]
[1609836143603,0.10106,31149.0,31131.0,2.34543703]
[1609836143604,0.10106,31149.0,31136.0,0.13632608]
[1609836145105,0.10106,31149.0,31129.0,5.3235]
[1609836145605,0.13632608,31130.0,31129.0,5.3235]
[1609836145807,0.13192,31141.0,31126.0,0.27331608]
[1609836146707,0.22792,31141.0,31126.0,0.27331608]
[1609836147008,0.22792,31141.0,31126.0,0.13632608]
[1609836147610,0.13632608,31127.0,31126.0,0.13632608]
[1609836148210,0.22792,31141.0,31126.0,0.13632608]
[1609836148410,0.22792,31141.0,31119.0,0.13976]
[1609836149014,0.0949,31140.0,31119.0,0.13976]
[1609836149715,0.13632608,31122.0,31120.0,0.13632608]
[1609836150613,0.13632608,31122.0,31119.0,0.13976]
[1609836151914,0.13632608,31122.0,31112.0,0.13632608]
[1609836153618,0.13632608,31113.0,31112.0,0.13632608]
[1609836154717,0.13632608,31113.0,31106.0,2.14924491]
[1609836154921,0.13632608,31113.0,31104.0,2.14947326]
[1609836155520,0.13632608,31113.0,31103.0,2.1495345]
[1609836155718,0.13632608,31108.0,31105.0,0.13632608]
[1609836157220,0.13632608,31108.0,31097.0,2.14133821]
[1609836157621,0.13632608,31108.0,31101.0,0.13632608]
[1609836159625,0.13632608,31102.0,31101.0,0.13632608]
[1609836168537,4.9102,31115.0,31101.0,0.13632608]
[1609836169737,0.13632608,31112.0,31109.0,0.13632608]
[1609836170139,0.11829,31120.0,31109.0,0.13632608]
[1609836170338,4.056,31125.0,31109.0,0.13632608]
[1609836170540,0.279,31150.0,31109.0,0.13632608]
[1609836170740,5.3131,31139.0,31109.0,0.13632608]
[1609836171139,0.11564,31134.0,31109.0,0.13632608]
[1609836171739,0.2801,31138.0,31109.0,0.13632608]
[1609836171940,0.13632608,31130.0,31121.0,0.13632608]
[1609836172139,0.25645608,31130.0,31121.0,0.13632608]
[1609836173844,0.25645608,31130.0,31129.0,0.13632608]
[1609836174041,0.2801,31138.0,31129.0,0.13632608]
[1609836175843,0.2801,31138.0,31136.0,0.13632608]
[1609836176744,0.2801,31138.0,31136.0,0.12022608]
[1609836177043,0.2801,31138.0,31117.0,3.9118]
[1609836177945,0.13632608,31136.0,31128.0,0.13632608]
[1609836183857,0.23332608,31136.0,31128.0,0.13632608]
[1609836184059,0.23332608,31136.0,31117.0,3.9118]
[1609836184060,0.13632608,31130.0,31117.0,3.9118]
[1609836184254,0.26374608,31130.0,31107.0,0.14973]
[1609836184655,0.26374608,31130.0,31102.0,6.76545157]
[1609836185957,0.26374608,31130.0,31120.0,0.13632608]
[1609836187655,0.6199,31129.0,31120.0,0.13632608]
[1609836187858,0.26374608,31130.0,31100.0,2.13078754]
[1609836188056,5.3664,31123.0,31107.0,0.13632608]
[1609836188357,3.8884,31115.0,31100.0,2.13078754]
[1609836189759,3.8884,31115.0,31101.0,2.1328652]
[1609836189959,0.13632608,31106.0,31101.0,2.1328652]
[1609836190159,0.26632608,31106.0,31101.0,2.1328652]
[1609836190363,0.26632608,31106.0,31098.0,0.13632608]
[1609836193465,5.3548,31100.0,31086.0,2.13674342]
[1609836193666,5.3548,31100.0,31084.0,0.09653]
[1609836193667,5.3548,31100.0,31087.0,2.13682571]
[1609836194067,0.13,31106.0,31087.0,2.13682571]
[1609836194369,4.7569,31096.0,31084.0,0.09653]
[1609836195172,4.7569,31096.0,31081.0,0.13632608]
[1609836195371,3.6637,31088.0,31081.0,0.13632608]
[1609836195785,3.6637,31088.0,31077.0,2.13763456]
[1609836195970,0.13632608,31078.0,31077.0,2.13763456]
[1609836196172,0.13632608,31078.0,31076.0,0.13632608]
[1609836196372,0.13632608,31078.0,31076.0,0.04542608]
[1609836197172,5.19862608,31078.0,31076.0,0.04542608]
[1609836197372,5.19862608,31078.0,31071.0,2.14541287]
[1609836197972,5.0623,31078.0,31072.0,0.13632608]
[1609836198172,0.14343,31084.0,31072.0,0.13632608]
[1609836198574,0.13045,31092.0,31072.0,0.13632608]
[1609836199974,0.13632608,31087.0,31082.0,0.13632608]
[1609836200374,0.13045,31092.0,31082.0,0.13632608]
[1609836200775,0.0186398,31108.0,31082.0,0.13632608]
[1609836200980,0.018588,31114.0,31082.0,0.13632608]
[1609836201576,0.2915,31115.0,31082.0,2.27353426]
[1609836201974,0.09621,31116.0,31114.0,0.13632608]
[1609836202175,0.13632608,31124.0,31114.0,0.13632608]
[1609836202574,0.8591341,31130.0,31114.0,0.13632608]
[1609836203774,0.5725341,31130.0,31114.0,0.13632608]
[1609836203974,0.5725341,31130.0,31114.0,0.28581608]
[1609836204177,0.13632608,31133.0,31129.0,0.13632608]
[1609836204375,0.01867204,31137.0,31129.0,0.13632608]
[1609836206177,0.01867204,31137.0,31136.0,0.13632608]
[1609836207478,0.13632608,31142.0,31136.0,0.13632608]
[1609836207889,0.13632608,31142.0,31124.0,0.09357]
[1609836208080,0.13632608,31129.0,31124.0,0.09357]
[1609836208882,0.26511608,31129.0,31119.0,2.13975761]
[1609836209079,0.26511608,31129.0,31113.0,2.14017395]
[1609836209780,0.26511608,31129.0,31107.0,4.4307]
[1609836210179,0.13632608,31116.0,31113.0,0.13632608]
[1609836211479,0.13632608,31116.0,31106.0,0.13256]
[1609836211679,0.86162608,31116.0,31101.0,2.14069257]
[1609836211881,0.86162608,31116.0,31100.0,2.14070012]
[1609836212080,0.13632608,31102.0,31100.0,2.14070012]
[1609836213984,0.13632608,31102.0,31096.0,2.14115162]
[1609836214482,0.13632608,31102.0,31092.0,0.13632608]
[1609836216084,0.1361,31111.0,31101.0,0.13632608]
[1609836216286,0.2979,31120.0,31101.0,0.13632608]
[1609836216684,0.2776,31133.0,31101.0,0.13632608]
[1609836218087,0.13632608,31120.0,31116.0,0.13632608]
[1609836218286,0.13632608,31120.0,31100.0,5.3809]
[1609836219289,0.13632608,31120.0,31108.0,2.13979127]
[1609836219489,0.13632608,31120.0,31108.0,2.25056127]
[1609836219688,0.2776,31133.0,31108.0,2.25056127]
[1609836220089,0.13632608,31129.0,31128.0,0.13632608]
[1609836220289,4.81112608,31129.0,31108.0,2.25056127]
[1609836220491,4.81112608,31129.0,31109.0,2.13981966]
[1609836222094,4.6748,31129.0,31115.0,0.13632608]
[1609836223593,4.6748,31129.0,31109.0,2.13981966]
[1609836224092,4.6748,31129.0,31110.0,0.13632608]
[1609836224392,4.6748,31129.0,31109.0,2.13981966]
[1609836224597,0.0951,31128.0,31109.0,2.13981966]
[1609836224795,4.6748,31129.0,31107.0,5.3149]
[1609836224993,0.375,31133.0,31105.0,2.14024029]
[1609836225193,4.4617,31119.0,31105.0,2.14024029]
[1609836225593,4.58007,31119.0,31105.0,2.14024029]
[1609836226093,0.13632608,31106.0,31105.0,2.14024029]
[1609836226695,0.13632608,31106.0,31105.0,1.52894029]
[1609836227296,5.41872608,31106.0,31105.0,1.52894029]
[1609836227897,5.41872608,31106.0,31105.0,0.97524029]
[1609836228095,5.41872608,31106.0,31105.0,0.78134029]
[1609836228295,5.41872608,31106.0,31105.0,0.71514029]
[1609836229097,5.41872608,31106.0,31102.0,2.31820759]
[1609836229298,5.41872608,31106.0,31102.0,2.25420759]
[1609836229799,5.41872608,31106.0,31102.0,2.12660759]
[1609836229997,0.13632608,31106.0,31102.0,2.02920759]
[1609836230197,0.13632608,31106.0,31102.0,1.99700759]
[1609836230398,0.13632608,31106.0,31102.0,1.70890759]
[1609836230597,0.13632608,31106.0,31102.0,1.64590759]
[1609836230797,0.13632608,31106.0,31102.0,1.46890759]
[1609836230997,0.13632608,31106.0,31102.0,0.35520759]
[1609836231197,0.13632608,31106.0,31099.0,2.47378248]
[1609836231398,3.706,31100.0,31099.0,2.47378248]
[1609836231600,3.85276,31100.0,31093.0,0.36331163]
[1609836231800,0.14676,31100.0,31093.0,0.36331163]
[1609836232001,4.1683,31094.0,31093.0,0.34721163]
[1609836232200,4.30462608,31094.0,31093.0,0.34721163]
[1609836233000,4.30462608,31094.0,31070.0,0.2745]
[1609836233199,4.40212608,31094.0,31070.0,0.2745]
[1609836233400,0.23382608,31094.0,31070.0,0.2745]
[1609836233599,5.2531,31082.0,31070.0,0.2]
[1609836233799,5.3877,31082.0,31070.0,0.2]
[1609836234101,0.13632608,31071.0,31070.0,0.2]
[1609836234707,0.23784608,31071.0,31070.0,0.2]
[1609836234913,0.23784608,31071.0,31054.0,0.13632608]
[1609836236102,0.23784608,31071.0,31070.0,0.13632608]
[1609836236302,0.1346,31082.0,31070.0,0.13632608]
[1609836236503,0.1346,31082.0,31070.0,5.15932608]
[1609836236903,0.62941654,31100.0,31070.0,5.15932608]
[1609836237104,0.62941654,31100.0,31070.0,0.13632608]
[1609836237306,0.62941654,31100.0,31078.0,5.0355]
[1609836237508,0.2915,31106.0,31078.0,5.13716]
[1609836237707,3.9971,31122.0,31078.0,5.13716]
[1609836238106,3.9971,31122.0,31106.0,0.13632608]
[1609836238309,0.2805,31127.0,31106.0,0.13632608]
[1609836238510,0.01836617,31103.0,31090.0,0.09909]
[1609836239310,0.15717617,31103.0,31090.0,0.09909]
[1609836239509,0.15717617,31103.0,31078.0,0.10166]
[1609836239711,4.96431,31103.0,31078.0,0.10166]
[1609836240113,4.96431,31103.0,31082.0,0.13632608]
[1609836241111,0.13881,31103.0,31082.0,0.13632608]
[1609836241314,0.13881,31103.0,31082.0,4.17822608]
[1609836242211,0.13632608,31100.0,31098.0,0.13632608]
[1609836243213,0.13632608,31100.0,31082.0,4.0419]
[1609836243414,0.13632608,31100.0,31078.0,0.10166]
[1609836243614,0.13632608,31100.0,31074.0,4.0249]
[1609836244216,0.13632608,31090.0,31087.0,0.13632608]
[1609836245519,0.13632608,31090.0,31074.0,4.0249]
[1609836246120,0.13632608,31081.0,31069.0,0.13632608]
[1609836248227,4.8322,31095.0,31079.0,0.13632608]
[1609836249127,4.8322,31095.0,31075.0,0.10061]
[1609836250126,0.13632608,31087.0,31078.0,0.13632608]
[1609836254230,0.13632608,31083.0,31078.0,0.13632608]
[1609836256233,0.13632608,31079.0,31075.0,0.10061]
[1609836256436,0.13632608,31079.0,31069.0,0.13632608]
[1609836257232,0.13632608,31079.0,31068.0,0.11828]
[1609836257434,0.13632608,31079.0,31058.0,2.14140922]
[1609836257833,5.2901,31075.0,31058.0,2.14140922]
[1609836258033,0.13632608,31079.0,31058.0,2.14140922]
[1609836258234,5.3895,31068.0,31058.0,2.14140922]
[1609836258434,0.13632608,31064.0,31056.0,2.14175081]
[1609836258634,0.674,31061.0,31056.0,2.14175081]
[1609836259035,4.727,31057.0,31056.0,1.98735081]
[1609836259235,4.727,31057.0,31045.0,2.33671096]
[1609836260234,0.0971,31058.0,31045.0,2.33671096]
[1609836260434,3.78312608,31046.0,31045.0,1.92151096]
[1609836260634,3.78312608,31046.0,31045.0,1.85611096]
[1609836261034,3.78312608,31046.0,31045.0,1.79951096]
[1609836261235,3.78312608,31046.0,31036.0,0.09471]
[1609836261637,0.13632608,31046.0,31036.0,0.09471]
[1609836262037,0.10244,31053.0,31036.0,0.09471]
[1609836262437,0.10244,31053.0,31045.0,0.13632608]
[1609836262637,0.13632608,31054.0,31045.0,0.13632608]
[1609836263040,0.13632608,31054.0,31043.0,0.10246]
[1609836263239,0.0963,31053.0,31043.0,0.10246]
[1609836263841,0.0963,31053.0,31036.0,0.09471]
[1609836263842,0.20298,31053.0,31036.0,0.09471]
[1609836264041,0.10668,31053.0,31036.0,0.09471]
[1609836264343,0.13632608,31037.0,31036.0,0.09471]
[1609836265145,0.13632608,31037.0,31036.0,1e-05]
[1609836265342,0.13632608,31037.0,31015.0,0.2712]
[1609836266445,0.13632608,31037.0,31027.0,0.13632608]
[1609836266645,0.13632608,31037.0,31027.0,0.23802608]
[1609836267845,0.10668,31053.0,31027.0,0.23802608]
[1609836268048,0.10668,31053.0,31031.0,3.9957]
[1609836268451,0.13632608,31054.0,31052.0,0.13632608]
[1609836268846,0.13632608,31054.0,31049.0,0.12292]
[1609836269447,0.10131,31068.0,31049.0,0.12292]
[1609836269647,0.00917364,31069.0,31049.0,0.12292]
[1609836270148,0.0965,31082.0,31049.0,0.12292]
[1609836270347,0.0965,31077.0,31049.0,0.12292]
[1609836270749,0.13632608,31058.0,31049.0,0.12292]
[1609836272849,0.13632608,31058.0,31057.0,0.13632608]
[1609836273049,0.13632608,31058.0,31049.0,0.12292]
[1609836273749,0.13632608,31058.0,31046.0,4.3557]
[1609836273949,0.13632608,31058.0,31027.0,0.1017]
[1609836274150,0.13632608,31058.0,31026.0,2.12178298]
[1609836274850,0.13632608,31041.0,31035.0,0.13632608]
[1609836275050,0.0977,31064.0,31035.0,0.13632608]
[1609836275450,0.0977,31064.0,31035.0,0.11628]
[1609836275652,3.6876,31048.0,31035.0,0.11628]
[1609836276452,3.6876,31048.0,31019.0,2.12271134]
[1609836276853,0.13632608,31033.0,31031.0,0.13632608]
[1609836277055,3.6876,31048.0,31031.0,0.13632608]
[1609836277253,3.6876,31048.0,31031.0,0.25235608]
[1609836278254,3.6876,31048.0,31031.0,0.11603]
[1609836278763,0.13632608,31032.0,31031.0,0.11603]
[1609836280057,3.6876,31048.0,31031.0,0.11603]
[1609836280257,0.29,31050.0,31031.0,0.11603]
[1609836280858,0.13632608,31047.0,31032.0,0.13632608]
[1609836282963,0.13632608,31034.0,31032.0,0.13632608]
[1609836284561,0.13632608,31034.0,31018.0,4.884]
[1609836284963,0.13845,31040.0,31024.0,0.13632608]
[1609836286864,0.13632608,31025.0,31024.0,0.13632608]
[1609836287066,0.13845,31040.0,31024.0,0.13632608]
[1609836288267,3.7097,31048.0,31024.0,0.13632608]
[1609836288467,0.1067,31051.0,31024.0,0.13632608]
[1609836288667,0.00920263,31061.0,31027.0,4.661]
[1609836288868,0.13632608,31055.0,31046.0,0.13632608]
[1609836289067,0.27152608,31055.0,31046.0,0.13632608]
[1609836290468,0.27152608,31055.0,31027.0,4.661]
[1609836290669,0.27152608,31055.0,31021.0,0.12676]
[1609836290873,0.13632608,31037.0,31034.0,0.13632608]
[1609836291771,0.13632608,31037.0,31015.0,0.2712]
[1609836292373,4.82992608,31037.0,31015.0,0.2712]
[1609836292974,4.6936,31037.0,31022.0,0.13632608]
[1609836293173,4.6936,31037.0,31022.0,0.26775608]
[1609836294373,0.0966,31036.0,31022.0,0.26775608]
[1609836294574,0.13021,31040.0,31022.0,0.26775608]
[1609836296375,0.0955,31039.0,31022.0,0.26775608]
[1609836296575,0.13021,31040.0,31022.0,0.26775608]
[1609836296777,0.13632608,31023.0,31022.0,0.26775608]
[1609836297577,0.11462,31032.0,31022.0,0.26775608]
[1609836298977,0.13632608,31023.0,31022.0,0.26775608]
[1609836301979,0.13632608,31023.0,31022.0,0.13143]
[1609836302180,0.13632608,31023.0,31015.0,0.11521]
[1609836302379,0.11462,31032.0,31006.0,4.5965]